bitfinex-derivatives/quotes_SOLF0:USTF0_20250415
["timestamp","ask_amount","ask_price","bid_price","bid_amount"]
[1744755916381,29.94,126.61,126.54,30.35866533]
[1744755916780,44.32396592,126.66,126.55,14.02396592]
[1744755917176,5.48306606,126.65,126.54,30.3]
[1744755917380,0.05955267,126.61,126.58,0.05319423]
[1744755917875,7.8987,126.6,126.58,0.05319423]
[1744755918078,0.05955267,126.61,126.58,0.05319423]
[1744755918780,44.32396592,126.6,126.53,1.9947]
[1744755918981,14.02396592,126.56,126.46,599.04]
[1744755919180,30.3,126.55,126.47,4.3028]
[1744755919587,7.9038,126.52,126.47,4.3028]
[1744755919784,0.05979548,126.51,126.48,0.05260263]
[1744755921088,7.96409548,126.51,126.48,0.05260263]
[1744755921590,0.05979548,126.51,126.48,0.05260263]
[1744755921789,0.05979548,126.51,126.48,2.18860263]
[1744755926693,0.05979548,126.51,126.48,2.18860263]
[1744755933499,7.96419548,126.51,126.48,2.18860263]
[1744755933798,0.05979548,126.51,126.48,2.18860263]
[1744755934795,30.3,126.55,126.48,2.18860263]
[1744755934999,30.3,126.55,126.49,30.3]
[1744755935500,7.9027,126.54,126.49,30.3]
[1744755935796,0.0575276,126.53,126.51,14.02396592]
[1744755936002,30.3,126.58,126.52,30.3]
[1744755936700,7.9015,126.56,126.52,30.3]
[1744755936901,0.05165882,126.55,126.53,0.05758972]
[1744755937202,7.9011,126.57,126.53,0.05758972]
[1744755937708,7.9012,126.56,126.53,0.05758972]
[1744755938103,7.95512678,126.56,126.53,0.05758972]
[1744755939000,0.05392678,126.56,126.53,0.05758972]
[1744755939205,30.3,126.55,126.53,0.05758972]
[1744755939502,8.76318851,126.54,126.48,2.136]
[1744755939698,7.9053,126.5,126.48,2.136]
[1744755940099,7.9046,126.51,126.48,2.136]
[1744755940308,7.96475858,126.51,126.48,2.18867485]
[1744755940603,0.06015858,126.51,126.48,2.18867485]
[1744755940901,7.9052,126.5,126.48,2.18867485]
[1744755941504,7.96475858,126.51,126.48,2.18867485]
[1744755942308,7.9051,126.5,126.48,2.18867485]
[1744755942808,7.96475858,126.51,126.48,2.18867485]
[1744755943307,7.9049,126.5,126.48,2.18867485]
[1744755944010,7.96475858,126.51,126.48,2.18867485]
[1744755944210,0.06015858,126.51,126.48,2.18867485]
[1744755944406,30.3,126.55,126.49,30.3]
[1744755944612,7.9035,126.53,126.49,30.3]
[1744755945410,0.05907344,126.52,126.5,0.06077045]
[1744755946611,0.05907344,126.52,126.5,8.82395896]
[1744755946810,0.05907344,126.52,126.51,7.9043]
[1744755947010,30.04,126.58,126.5,8.82395896]
[1744755947211,30.04,126.58,126.5,8.76318851]
[1744755947513,7.9019,126.55,126.5,8.76318851]
[1744755947708,30.04,126.58,126.5,8.76318851]
[1744755947908,30.04,126.58,126.52,7.9032]
[1744755948108,0.05439215,126.55,126.53,0.05522312]
[1744755948309,7.95629215,126.55,126.53,0.05522312]
[1744755953616,0.05439215,126.55,126.53,0.05522312]
[1744755954116,7.95649215,126.55,126.53,0.05522312]
[1744755954420,0.05439215,126.55,126.53,0.05522312]
[1744755954721,0.05439215,126.55,126.53,7.95782312]
[1744755955618,0.05439215,126.55,126.54,7.9024]
[1744755958820,7.9024,126.54,126.53,0.05522312]
[1744755959222,0.05439215,126.55,126.53,0.05522312]
[1744755959420,7.95649215,126.55,126.53,7.95802312]
[1744755964824,0.05439215,126.55,126.53,7.95802312]
[1744755965524,0.05439215,126.55,126.54,7.9024]
[1744755966720,30.07439215,126.55,126.53,0.05522312]
[1744755966926,7.9044,126.51,126.47,4.1381]
[1744755967722,7.9044,126.51,126.49,7.9055]
[1744755967925,7.9049,126.5,126.49,0.05145037]
[1744755968524,0.05345032,126.51,126.49,0.05145037]
[1744755968923,8.79037063,126.55,126.49,30.07145037]
[1744755969228,35.63049472,126.56,126.51,5.61049472]
[1744755969429,35.63049472,126.56,126.52,7.9036]
[1744755969627,35.63049472,126.56,126.51,5.61049472]
[1744755970022,0.05615899,126.55,126.52,7.95383606]
[1744755970224,7.95835899,126.55,126.52,7.95383606]
[1744755971524,7.9026,126.54,126.52,7.95383606]
[1744755972430,0.05615899,126.55,126.52,0.05053606]
[1744755973627,7.9027,126.54,126.52,7.95393606]
[1744755973825,0.05615899,126.55,126.52,7.95393606]
[1744755974025,0.05615899,126.55,126.52,0.05053606]
[1744755974226,7.95825899,126.55,126.53,7.903]
[1744755974430,7.95825899,126.55,126.52,0.05053606]
[1744755974831,7.9025,126.54,126.52,7.95393606]
[1744755975436,7.9031,126.53,126.52,0.05053606]
[1744755977829,46.52574638,126.53,126.46,29.82]
[1744755978037,8.76595404,126.5,126.44,29.82]
[1744755978229,7.9069,126.47,126.44,29.82]
[1744755978625,7.96698639,126.47,126.44,37.78338523]
[1744755979936,0.06008639,126.47,126.45,7.9077]
[1744755982836,0.06008639,126.47,126.46,7.9074]
[1744755983339,38.60595404,126.56,126.46,8.76595404]
[1744755983538,7.9034,126.53,126.48,8.76595404]
[1744755983738,38.60595404,126.56,126.49,29.84]
[1744755983938,7.903,126.54,126.51,7.9037]
[1744755984336,0.053393,126.54,126.51,7.96413273]
[1744755984536,7.9031,126.53,126.51,7.96413273]
[1744755984738,0.053393,126.54,126.51,7.96413273]
[1744755985139,7.9031,126.53,126.51,7.96413273]
[1744755986642,7.956193,126.54,126.51,7.96413273]
[1744755987044,0.053393,126.54,126.52,7.9033]
[1744755987238,0.053393,126.54,126.51,0.06043273]
[1744755988242,7.9036,126.53,126.51,0.06043273]
[1744755988636,0.053393,126.54,126.51,0.06043273]
[1744755989545,7.9037,126.52,126.51,0.06043273]
[1744755992235,0.053393,126.54,126.51,0.06043273]
[1744755995350,7.9037,126.52,126.51,0.06043273]
[1744756003355,0.053393,126.54,126.51,5.67220913]
[1744756003556,0.053393,126.54,126.52,5.6117764]
[1744756003952,7.956093,126.54,126.52,13.5149764]
[1744756004150,0.053393,126.54,126.52,13.5149764]
[1744756005358,7.955793,126.54,126.52,13.5149764]
[1744756006362,0.053393,126.54,126.52,13.5149764]
[1744756006562,0.053393,126.54,126.53,7.9031]
[1744756006867,35.7917764,126.59,126.53,5.6117764]
[1744756007162,30.18,126.59,126.55,5.6117764]
[1744756007362,7.9002,126.58,126.55,5.6117764]
[1744756007660,7.9002,126.58,126.55,13.5132764]
[1744756007854,7.95639758,126.58,126.55,13.57252895]
[1744756008259,0.05619758,126.58,126.55,5.67102895]
[1744756008761,0.05619758,126.58,126.56,7.9006]
[1744756009064,0.05619758,126.58,126.55,5.67102895]
[1744756009266,0.05619758,126.58,126.55,0.05925255]
[1744756009466,0.05619758,126.58,126.57,7.9006]
[1744756010865,0.05619758,126.58,126.55,0.05925255]
[1744756011763,7.95639758,126.58,126.56,7.9009]
[1744756011965,0.05619758,126.58,126.55,8.8197286]
[1744756012266,7.8977,126.62,126.57,38.94047605]
[1744756012667,7.8977,126.62,126.59,7.899]
[1744756012967,7.8981,126.61,126.59,7.899]
[1744756013267,0.05207425,126.61,126.59,7.95073093]
[1744756014263,7.95017425,126.61,126.59,0.05173093]
[1744756014569,0.05207425,126.61,126.59,0.05173093]
[1744756014759,7.8997,126.59,126.56,11.9654]
[1744756015671,7.8997,126.59,126.56,12.02440124]
[1744756015869,7.9,126.58,126.56,12.02440124]
[1744756016072,7.95964899,126.58,126.56,12.02440124]
[1744756017072,0.05964899,126.58,126.56,0.05900124]
[1744756018572,7.95994899,126.58,126.56,0.05900124]
[1744756019174,7.95994899,126.58,126.56,7.96010124]
[1744756019376,0.05964899,126.58,126.56,0.05900124]
[1744756020277,0.05964899,126.58,126.56,7.95980124]
[1744756021878,7.95964899,126.58,126.56,7.95980124]
[1744756023481,7.9006,126.57,126.56,0.05900124]
[1744756029989,7.9037,126.52,126.51,30.18]
[1744756032489,7.9043,126.51,126.5,0.05658586]
[1744756032880,13.51580511,126.51,126.5,0.05658586]
[1744756033385,7.9043,126.51,126.5,0.05658586]
[1744756055111,13.52032584,126.51,126.5,0.05658586]
[1744756056310,7.9043,126.51,126.5,0.05658586]
[1744756061914,0.05754043,126.53,126.5,5.6726117]
[1744756062107,0.05754043,126.53,126.51,13.52002584]
[1744756062413,0.05754043,126.53,126.51,5.61602584]
[1744756062613,0.05754043,126.53,126.51,13.52022584]
[1744756063011,0.05754043,126.53,126.51,5.61602584]
[1744756063606,0.05754043,126.53,126.51,7.9039]
[1744756063815,29.98,126.56,126.52,5.61602584]
[1744756064014,29.98,126.59,126.55,5.61602584]
[1744756064213,5.61602584,126.61,126.56,13.51692584]
[1744756064414,5.50685273,126.6,126.57,5.61602584]
[1744756064612,7.8991,126.6,126.57,5.61602584]
[1744756064805,0.05015572,126.6,126.57,5.61602584]
[1744756065011,0.05015572,126.6,126.57,5.66878916]
[1744756065516,0.05015572,126.6,126.59,5.61602584]
[1744756066516,0.05015572,126.6,126.59,13.51532584]
[1744756067117,0.05015572,126.6,126.59,7.8993]
[1744756072019,0.05015572,126.6,126.58,9.9181]
[1744756072321,0.05015572,126.6,126.57,30.03276332]
[1744756072822,0.05015572,126.6,126.58,7.8996]
[1744756074016,0.05015572,126.6,126.57,30.03276332]
[1744756074221,29.82,126.62,126.57,38.78820291]
[1744756074423,598.8,126.65,126.57,38.78820291]
[1744756074624,7.8968,126.63,126.57,38.73543959]
[1744756075226,0.05952726,126.61,126.59,0.05004864]
[1744756075620,0.05952726,126.61,126.6,7.8982]
[1744756076129,29.82,126.65,126.62,7.897]
[1744756076730,37.716,126.65,126.62,7.897]
[1744756076924,29.82,126.65,126.61,7.8978]
[1744756077130,7.8968,126.63,126.62,0.05384389]
[1744756079831,7.95628882,126.64,126.62,0.05384389]
[1744756080033,0.05978882,126.64,126.62,0.05384389]
[1744756080225,8.81522841,126.64,126.62,0.05384389]
[1744756080427,7.8968,126.63,126.62,0.05384389]
[1744756080629,8.81522841,126.64,126.57,37.8803]
[1744756080825,8.75543959,126.64,126.57,37.8803]
[1744756081332,8.75543959,126.64,126.57,29.98]
[1744756081529,29.82,126.65,126.57,38.73543959]
[1744756081725,0.05368125,126.62,126.6,0.05621545]
[1744756083734,7.8981,126.61,126.6,0.05621545]
[1744756089337,0.05368125,126.62,126.6,0.05621545]
[1744756089532,0.05368125,126.62,126.6,2.07501545]
[1744756090242,0.05368125,126.62,126.6,0.05621545]
[1744756091243,7.95158125,126.62,126.6,0.05621545]
[1744756091543,0.05368125,126.62,126.6,0.05621545]
[1744756091934,7.8981,126.61,126.6,0.05621545]
[1744756094041,7.95148125,126.62,126.6,0.05621545]
[1744756094246,0.05368125,126.62,126.6,0.05621545]
[1744756095146,7.8981,126.61,126.6,0.05621545]
[1744756095446,0.05368125,126.62,126.6,0.05621545]
[1744756096148,7.8981,126.61,126.6,0.05621545]
[1744756097243,13.50239122,126.61,126.6,0.05621545]
[1744756097550,7.8981,126.61,126.6,0.05621545]
[1744756097948,0.05368125,126.62,126.6,5.66050667]
[1744756098148,29.82,126.65,126.61,5.60429122]
[1744756098349,29.82,126.65,126.61,7.64879122]
[1744756098548,7.8965,126.64,126.61,15.54649122]
[1744756099043,7.8965,126.64,126.62,7.8973]
[1744756099249,29.82,126.68,126.63,5.60429122]
[1744756099438,29.82,126.68,126.65,5.60429122]
[1744756099645,35.42429122,126.68,126.63,7.62209122]
[1744756100243,7.8953,126.66,126.64,0.05217578]
[1744756101349,7.8956,126.65,126.64,0.05217578]
[1744756101551,0.05606355,126.67,126.64,0.05217578]
[1744756101749,0.05606355,126.67,126.64,5.656467]
[1744756101941,0.05606355,126.67,126.64,13.552267]
[1744756102145,0.05606355,126.67,126.64,5.656467]
[1744756102350,0.05606355,126.67,126.65,7.8953]
[1744756102550,0.05606355,126.67,126.65,13.49959122]
[1744756103447,0.05606355,126.67,126.66,7.8949]
[1744756103652,5.60429122,126.72,126.66,7.59259122]
[1744756103844,5.60429122,126.72,126.67,5.60429122]
[1744756104046,5.60429122,126.71,126.66,7.59259122]
[1744756104349,7.8928,126.7,126.67,7.8939]
[1744756104549,7.92786308,126.7,126.67,7.94734725]
[1744756104947,0.03506308,126.7,126.68,7.8936]
[1744756105153,0.03506308,126.7,126.67,5.65773847]
[1744756105350,0.03506308,126.7,126.68,5.60429122]
[1744756105550,0.03506308,126.7,126.69,13.49739122]
[1744756105750,37.6909,126.73,126.69,5.60429122]
[1744756106250,7.8896,126.75,126.71,5.60429122]
[1744756106453,7.8896,126.75,126.72,5.60429122]
[1744756106646,35.40429122,126.76,126.72,5.60429122]
[1744756106647,35.40429122,126.76,126.72,5.66414844]
[1744756106852,7.8894,126.75,126.72,13.55484844]
[1744756107153,179.735756,126.79,126.74,5.60429122]
[1744756107450,187.622056,126.8,126.76,13.49269122]
[1744756107646,179.735756,126.8,126.77,5.65612193]
[1744756107849,7.8868,126.79,126.77,0.05183071]
[1744756108156,185.34004722,126.8,126.77,0.05183071]
[1744756108850,179.735756,126.8,126.77,0.05183071]
[1744756109356,7.8874,126.79,126.77,0.05183071]
[1744756111556,7.8875,126.78,126.77,0.05183071]
[1744756112054,29.8,126.81,126.77,0.05183071]
[1744756112356,7.8872,126.79,126.77,0.05183071]
[1744756112556,29.8,126.81,126.77,0.05183071]
[1744756113956,29.78,126.84,126.77,0.05183071]
[1744756114149,29.78,126.84,126.79,0.05716906]
[1744756114556,7.8861,126.81,126.79,0.05716906]
[1744756114757,29.78,126.84,126.79,0.05716906]
[1744756115252,7.8862,126.8,126.79,0.05716906]
[1744756132160,37.6659,126.81,126.79,0.05716906]
[1744756132460,35.34795659,126.83,126.79,5.64512565]
[1744756132663,35.34795659,126.83,126.79,0.05716906]
[1744756133959,7.8862,126.8,126.79,0.05716906]
[1744756147669,13.40321284,126.8,126.79,0.05716906]
[1744756149071,16.67688998,126.8,126.79,0.05716906]
[1744756149271,13.40321284,126.8,126.79,0.05716906]
[1744756149467,16.68053141,126.8,126.79,0.05716906]
[1744756151570,16.68948093,126.8,126.79,0.05716906]
[1744756153271,16.7197412,126.8,126.79,0.05716906]
[1744756156871,44.18149779,126.8,126.69,567.74]
[1744756157079,5.58795659,126.74,126.7,7.68745659]
[1744756157376,5.58795659,126.71,126.67,4.2818]
[1744756157576,13.48075659,126.7,126.67,4.2818]
[1744756157767,7.8928,126.7,126.67,4.2818]
[1744756158076,7.8931,126.69,126.67,4.34220984]
[1744756158777,7.8931,126.69,126.67,12.23650984]
[1744756159274,7.8931,126.69,126.67,4.34220984]
[1744756159478,7.8937,126.68,126.67,4.34220984]
[1744756159775,7.8937,126.68,126.67,2.15650984]
[1744756159975,7.8937,126.68,126.67,0.06040984]
[1744756163977,7.8935,126.69,126.67,5.64836643]
[1744756164176,0.05707906,126.7,126.68,5.58795659]
[1744756164378,29.76,126.72,126.69,5.58795659]
[1744756164578,37.6515,126.72,126.69,13.48075659]
[1744756165080,7.8919,126.71,126.69,13.48075659]
[1744756165982,29.76,126.72,126.69,13.48075659]
[1744756165983,37.6515,126.72,126.69,13.48075659]
[1744756166884,29.76,126.72,126.7,7.8924]
[1744756167084,29.76,126.72,126.7,0.05831117]
[1744756167582,7.8909,126.73,126.7,0.05831117]
[1744756168190,7.8913,126.72,126.7,0.05831117]
[1744756171289,5.58795659,126.74,126.7,0.05831117]
[1744756171488,5.58795659,126.71,126.7,0.05831117]
[1744756171890,7.894,126.68,126.66,2.1016]
[1744756172888,7.95224876,126.68,126.66,2.15834571]
[1744756173091,0.05824876,126.68,126.66,2.15834571]
[1744756173288,0.05824876,126.68,126.66,7.7463023]
[1744756173586,0.05824876,126.68,126.67,7.8943]
[1744756173793,0.05824876,126.68,126.66,7.7463023]
[1744756174491,0.05824876,126.68,126.66,15.6410023]
[1744756174688,0.05824876,126.68,126.66,2.15834571]
[1744756174992,0.05824876,126.68,126.66,10.05324571]
[1744756176695,0.05824876,126.68,126.67,7.8943]
[1744756177996,7.8928,126.7,126.67,7.8943]
[1744756178600,7.8932,126.69,126.66,15.6410023]
[1744756183802,7.8932,126.69,126.67,7.8942]
[1744756184096,29.76,126.72,126.68,5.58795659]
[1744756184304,29.78,126.75,126.72,7.8909]
[1744756184599,29.78,126.77,126.72,13.53570183]
[1744756184804,7.8897,126.75,126.72,13.53570183]
[1744756186206,7.8897,126.75,126.73,7.8905]
[1744756187405,7.8897,126.75,126.72,13.53570183]
[1744756191007,7.889,126.76,126.73,7.8902]
[1744756191212,7.889,126.76,126.73,13.47815659]
[1744756192308,29.78,126.77,126.73,5.58795659]
[1744756192501,29.78,126.77,126.75,5.58795659]
[1744756192707,35.34795659,126.8,126.75,5.64491568]
[1744756193002,29.76,126.8,126.76,5.58795659]
[1744756193203,7.8872,126.79,126.76,13.47635659]
[1744756193414,29.76,126.8,126.77,5.58795659]
[1744756193612,37.6465,126.8,126.77,13.47575659]
[1744756198813,7.8869,126.79,126.77,5.58795659]
[1744756199117,35.34795659,126.8,126.75,5.64491568]
[1744756199310,7.8878,126.78,126.75,5.64491568]
[1744756199511,7.8878,126.78,126.75,13.53391568]
[1744756199708,5.58795659,126.82,126.77,5.58795659]
[1744756199912,7.886,126.81,126.78,13.53466166]
[1744756200313,35.32795659,126.83,126.78,5.64746166]
[1744756200511,35.32795659,126.83,126.81,5.58795659]
[1744756200512,29.74,126.83,126.81,5.58795659]
[1744756200714,35.32795659,126.87,126.82,5.58795659]
[1744756200915,7.8834,126.85,126.83,0.06029191]
[1744756201113,5.58795659,126.86,126.83,0.06029191]
[1744756201315,5.58795659,126.84,126.83,0.06029191]
[1744756201515,13.47165659,126.84,126.83,0.06029191]
[1744756202719,43.21165659,126.84,126.83,0.06029191]
[1744756203317,37.6237,126.84,126.83,0.06029191]
[1744756204119,29.74,126.84,126.83,0.06029191]
[1744756204319,35.32795659,126.84,126.83,0.06029191]
[1744756204721,43.21165659,126.84,126.83,0.06029191]
[1744756204915,37.6237,126.84,126.83,0.06029191]
[1744756205312,29.74,126.84,126.83,0.06029191]
[1744756205814,37.6237,126.84,126.83,0.06029191]
[1744756206522,43.21165659,126.84,126.83,0.06029191]
[1744756207219,37.6237,126.84,126.83,0.06029191]
[1744756207618,29.74,126.84,126.83,0.06029191]
[1744756207821,35.32795659,126.87,126.83,0.06029191]
[1744756208020,5.58795659,126.87,126.83,5.6482485]
[1744756208217,7.8832,126.85,126.83,7.94439191]
[1744756208419,5.58795659,126.84,126.83,0.06029191]
[1744756208913,13.47165659,126.84,126.83,0.06029191]
[1744756210619,7.8859,126.81,126.78,17.57325659]
[1744756211221,7.8866,126.8,126.77,43.21575659]
[1744756211620,7.93710423,126.8,126.77,43.27478425]
[1744756212122,7.93710423,126.8,126.78,7.8874]
[1744756213520,0.05050423,126.8,126.78,7.8874]
[1744756214122,0.05050423,126.8,126.77,35.38698425]
[1744756214619,0.05050423,126.8,126.78,7.887]
[1744756215323,0.05050423,126.8,126.77,0.05902766]
[1744756215620,7.93700423,126.8,126.77,5.64698425]
[1744756215821,0.05050423,126.8,126.78,5.58795659]
[1744756216021,0.05050423,126.8,126.78,9.84115659]
[1744756216620,0.05050423,126.8,126.79,7.8868]
[1744756217625,29.74,126.85,126.81,7.885]
[1744756217915,35.32795659,126.85,126.81,5.58795659]
[1744756218120,7.8846,126.83,126.8,13.47385659]
[1744756218622,7.8846,126.83,126.8,13.52763266]
[1744756218824,5.58795659,126.82,126.8,0.05377607]
[1744756219223,13.47325659,126.82,126.8,0.05377607]
[1744756219523,7.8853,126.82,126.8,0.05377607]
[1744756220122,7.8847,126.83,126.8,7.93967607]
[1744756220320,7.8847,126.83,126.8,0.05377607]
[1744756221222,7.8847,126.83,126.81,7.8855]
[1744756221525,7.8847,126.83,126.8,0.05377607]
[1744756221722,7.8847,126.83,126.8,7.93957607]
[1744756222122,5.58795659,126.84,126.8,0.05377607]
[1744756222324,5.58795659,126.83,126.8,0.05377607]
[1744756222725,7.8853,126.82,126.8,0.05377607]
[1744756223225,7.8847,126.83,126.8,7.93987607]
[1744756223923,7.885,126.82,126.8,7.93987607]
[1744756224324,5.58795659,126.84,126.8,7.93987607]
[1744756224525,7.8847,126.83,126.8,7.93987607]
[1744756226621,13.47195659,126.84,126.81,7.8855]
[1744756226826,7.884,126.84,126.81,13.47345659]
[1744756227028,29.74,126.85,126.81,5.58795659]
[1744756227327,37.6237,126.85,126.82,7.8847]
[1744756227722,7.8822,126.87,126.84,7.8837]
[1744756227924,7.8822,126.87,126.84,7.93740951]
[1744756228123,35.30795659,126.88,126.84,7.93740951]
[1744756228624,7.882,126.87,126.84,7.93740951]
[1744756229228,37.6015,126.88,126.85,7.8829]
[1744756229528,5.58795659,126.87,126.84,0.05370951]
[1744756229727,5.58795659,126.85,126.84,0.05370951]
[1744756229928,5.58795659,126.85,126.79,5.58795659]
[1744756230129,5.58795659,126.82,126.78,41.63085659]
[1744756230430,7.8856,126.81,126.79,7.8865]
[1744756230824,5.58795659,126.82,126.79,7.8865]
[1744756231020,0.05675442,126.82,126.8,7.8862]
[1744756231225,0.05675442,126.82,126.79,0.05367245]
[1744756231828,7.94215442,126.82,126.79,7.94027245]
[1744756232028,5.58795659,126.81,126.79,0.05367245]
[1744756232328,7.8862,126.8,126.79,0.05367245]
[1744756232525,13.47415659,126.8,126.79,0.05367245]
[1744756232828,7.8891,126.76,126.73,4.0743]
[1744756233027,13.47705659,126.76,126.73,4.0743]
[1744756233330,5.58795659,126.75,126.72,2.0549]
[1744756233527,13.47765659,126.75,126.72,9.9461]
[1744756233730,5.58795659,126.73,126.69,35.30795659]
[1744756233929,29.77403588,126.72,126.7,0.05910919]
[1744756234229,35.30795659,126.71,126.7,0.05189323]
[1744756235228,38.46833462,126.71,126.7,0.05189323]
[1744756235421,46.36013462,126.71,126.7,0.05189323]
[1744756237228,46.36013462,126.71,126.7,9.323e-05]
[1744756237429,38.46833462,126.71,126.64,7.8959]
[1744756237629,8.74833462,126.69,126.64,7.8959]
[1744756237932,7.8941,126.68,126.64,7.8959]
[1744756238331,0.05192519,126.67,126.65,0.05817919]
[1744756238631,7.94672519,126.67,126.65,0.05817919]
[1744756238831,8.80025981,126.67,126.65,0.05817919]
[1744756239331,7.94652519,126.67,126.65,0.05817919]
[1744756239530,0.05192519,126.67,126.65,0.05817919]
[1744756240030,0.05192519,126.67,126.65,7.95367919]
[1744756241229,0.05192519,126.67,126.66,7.8949]
[1744756241429,7.8926,126.7,126.66,7.8949]
[1744756242632,0.05495792,126.69,126.66,7.8949]
[1744756244732,7.94805792,126.69,126.66,7.8949]
[1744756245230,7.94805792,126.69,126.65,10.15967919]
[1744756245737,7.8938,126.68,126.65,2.26437919]
[1744756247036,7.94825792,126.69,126.65,10.15977919]
[1744756248431,0.05495792,126.69,126.66,7.8949]
[1744756248731,0.05495792,126.69,126.66,4.2094]
[1744756248934,0.05495792,126.69,126.67,7.8943]
[1744756249737,25.89797248,126.78,126.66,4.2094]
[1744756249738,29.74,126.74,126.68,8.74833462]
[1744756250132,29.74,126.76,126.72,7.8911]
[1744756250629,7.8897,126.75,126.72,7.8911]
[1744756250833,7.93966081,126.75,126.72,7.94496397]
[1744756253037,7.8901,126.74,126.72,0.05386397]
[1744756254945,8.79829543,126.75,126.66,42.69773462]
[1744756255246,8.74833462,126.75,126.66,42.69773462]
[1744756256045,7.892,126.71,126.69,0.05310411]
[1744756256647,7.94455177,126.72,126.69,0.05310411]
[1744756256843,0.05295177,126.72,126.69,0.05310411]
[1744756257047,29.74,126.76,126.69,31.88710411]
[1744756257254,7.8897,126.75,126.72,7.8908]
[1744756258045,7.9427274,126.75,126.72,7.95034521]
[1744756258647,7.9427274,126.75,126.72,0.05954521]
[1744756259544,0.0530274,126.75,126.72,0.05954521]
[1744756259743,8.74833462,126.74,126.72,0.05954521]
[1744756259949,7.8906,126.73,126.72,0.05954521]
[1744756260953,37.6306,126.73,126.72,0.05954521]
[1744756264757,0.0530274,126.75,126.72,0.05954521]
[1744756265448,606.64833462,126.81,126.74,8.74833462]
[1744756265657,597.9,126.81,126.74,8.74833462]
[1744756265848,7.8871,126.79,126.76,7.8885]
[1744756266150,29.74,126.81,126.74,10.87723462]
[1744756266563,29.74,126.81,126.76,0.05636071]
[1744756267055,7.8865,126.8,126.76,0.05636071]
[1744756267659,37.6258,126.81,126.78,7.8873]
[1744756268557,7.8863,126.8,126.78,7.8873]
[1744756269258,7.8863,126.8,126.77,7.8877]
[1744756269563,29.74,126.81,126.76,29.79636071]
[1744756271159,7.8872,126.79,126.76,29.79636071]
[1744756271562,29.72,126.84,126.78,8.74833462]
[1744756271857,597.82,126.87,126.8,8.80392028]
[1744756272355,29.72,126.87,126.8,10.84162028]
[1744756272559,29.72,126.9,126.82,8.74833462]
[1744756272752,29.72,126.9,126.85,0.0506662]
[1744756273864,7.8825,126.86,126.85,0.0506662]
[1744756279367,29.72,126.9,126.85,0.0506662]
[1744756279668,29.72,126.9,126.86,0.0559742]
[1744756280062,7.8819,126.87,126.86,0.0559742]
[1744756282467,7.884,126.84,126.82,29.72]
[1744756282670,29.7,126.87,126.8,2.0377]
[1744756282970,43.6511973,126.87,126.8,2.0377]
[1744756283170,43.6511973,126.87,126.8,9.9236]
[1744756283471,0.05889551,126.85,126.82,0.06009594]
[1744756283769,7.8844,126.83,126.82,0.06009594]
[1744756286270,7.8841,126.84,126.82,0.06009594]
[1744756287173,7.94239551,126.85,126.82,7.94509594]
[1744756287369,7.94239551,126.85,126.82,0.06009594]
[1744756287573,0.05889551,126.85,126.82,0.06009594]
[1744756290075,7.8844,126.83,126.82,0.06009594]
[1744756290273,0.05889551,126.85,126.82,0.06009594]
[1744756290573,7.884,126.84,126.82,0.06009594]
[1744756291675,7.8844,126.83,126.82,0.06009594]
[1744756292976,7.8841,126.84,126.82,0.06009594]
[1744756293177,0.05889551,126.85,126.82,0.06009594]
[1744756293376,7.8844,126.83,126.82,9.594e-05]
[1744756293683,22.68448076,126.83,126.73,6.3041]
[1744756293981,7.8902,126.74,126.7,29.7]
[1744756294477,0.05874456,126.73,126.71,0.0542026]
[1744756295079,0.05874456,126.73,126.72,7.8912]
[1744756300484,7.889,126.76,126.73,7.8903]
[1744756300890,37.5882,126.77,126.71,0.0542026]
[1744756301090,29.7,126.77,126.71,0.0542026]
[1744756301489,7.94778028,126.75,126.71,0.0542026]
[1744756302189,0.05838028,126.75,126.73,7.8905]
[1744756302989,0.05838028,126.75,126.72,7.8909]
[1744756305393,0.05838028,126.75,126.73,7.8905]
[1744756308693,0.05838028,126.75,126.74,7.89]
[1744756308990,29.7,126.77,126.71,0.0542026]
[1744756308991,13.98230002,126.83,126.73,29.72]
[1744756309196,7.8859,126.81,126.76,7.8883]
[1744756309996,7.8859,126.81,126.77,0.05077484]
[1744756310692,37.6053,126.82,126.78,7.8875]
[1744756310993,37.6053,126.82,126.77,0.05077484]
[1744756310994,29.72,126.82,126.77,0.05077484]
[1744756311290,21.86640002,126.84,126.77,4.36467484]
[1744756311490,597.26,126.85,126.77,4.36467484]
[1744756311696,597.26,126.85,126.8,0.06066518]